[Event "American Cup Open Elimination 2024"]
[Site "Saint Louis"]
[Date "2024.03.14"]
[Round "1.1"]
[White "Sevian, Samuel"]
[Black "Oparin, Grigoriy"]
[Result "1/2-1/2"]
[ECO "B67"]
[WhiteElo "2697"]
[BlackElo "2671"]
[Annotator "TA"]
[PlyCount "68"]
[EventDate "2024.03.11"]
[EventType "k.o."]
[EventCountry "USA"]
[SourceTitle "playchess.com"]
[Source "ChessBase"]
[SourceQuality "1"]
[TimeControl "900+10"]

{[%evp 20,68,52,30,45,23,58,7,33,32,33,0,0,0,0,7,19,18,20,21,66,0,0,0,20,-43,-33,-43,-60,-59,-51,-61,-57,-60,18,-36,-14,-39,-39,-24,-23,-40,-7,-10,0,-38,0,0,0,-36,0]} 1. e4 {[%emt 0:00:01]} c5 {[%emt 0:00:01]} 2. Nf3 {[%emt 0:00:01]} d6 {[%emt 0:00:02]} 3. d4 {[%emt 0:00:05]} cxd4 {[%emt 0:00:02]} 4. Nxd4 {[%emt 0:00:02]} Nf6 {[%emt 0:00:03]} 5. Nc3 {[%emt 0:00:01]} Nc6 {[%emt 0:00:01]} 6. Bg5 {[%emt 0:00:06]} e6 {[%emt 0:00:05]} 7. Qd2 {[%emt 0:00:13]} a6 {[%emt 0:00:03]} 8. O-O-O {[%emt 0:00:02]} Bd7 {[%emt 0:00:03]} 9. f3 {[%emt 0:00:07]} Nxd4 {[%emt 0:00:14]} 10. Qxd4 {[%emt 0:00:03]} Be7 {[%emt 0:00:02]} 11. h4 {[%emt 0:00:17]} h6 {[%emt 0:01:47]} 12. Be3 {[%emt 0:00:19]} h5 {[%emt 0:00:05]} 13. Kb1 {[%emt 0:01:12]} (13. Be2 $14) 13... Qc7 {[%emt 0:00:09] The position is equal.} 14. Qd2 {[%emt 0:00:51]} b5 {[%emt 0:00:04][%cal Bb7b5,Bb5b4][%mdl 32]} 15. Bg5 {[%emt 0:00:31]} b4 {[%emt 0:00:09]} 16. Ne2 {[%emt 0:00:03]} a5 {[%emt 0:00:03]} 17. c4 {[%emt 0:02:02]} e5 {[%emt 0:02:21]} 18. Ng3 {[%emt 0:02:14]} g6 {[%emt 0:00:16]} 19. Be2 {[%emt 0:00:43]} Ba4 {[%emt 0:05:24]} 20. Rdf1 {[%emt 0:01:50]} (20. b3 $14 Bd7 21. f4) 20... Bc6 $11 {[%emt 0:01:03]} 21. Rd1 {[%emt 0:01:33]} Rd8 {[%emt 0:01:05]} 22. Rhf1 {[%emt 0:00:38]} (22. Nf1 $11) 22... Nh7 $15 {[%emt 0:01:00]} 23. f4 {[%emt 0:01:09]} Nxg5 {[%emt 0:00:58]} 24. fxg5 {[%emt 0:00:04]} Qb6 {[%emt 0:00:16]} 25. Bd3 {[%emt 0:00:41]} Rd7 {[%emt 0:00:33]} 26. Rf3 {[%emt 0:00:14]} Rf8 {[%emt 0:00:05]} ({Black should play} 26... O-O $15) 27. Rdf1 {[%emt 0:01:21]} ({White has to play} 27. Nf1 $1 $11) 27... Bd8 {[%emt 0:00:23]} 28. Nh1 {[%emt 0:00:52]} Qd4 {[%emt 0:00:15]} 29. Ng3 {[%emt 0:00:20]} Qc5 {[%emt 0:00:16]} 30. R1f2 {[%emt 0:00:17]} Bb6 {[%emt 0:00:14]} 31. Nf1 {[%emt 0:00:07]} Qd4 {[%emt 0:00:27]} 32. Ng3 {[%emt 0:00:48]} Qc5 {[%emt 0:00:07]} 33. Nf1 {[%emt 0:00:06]} Qd4 {[%emt 0:00:04]} 34. Ng3 {[%emt 0:00:30]} Qc5 {[%emt 0:00:13] Weighted Error Value: White=0.20 (precise) /Black=0.17 (very precise) .  Mistake:       	White=4     	Black=1      Inaccurate:     	White=2     	Black=5      OK:         	White=10    	Black=7      Best:        	---       	Black=1} 1/2-1/2

[Event "American Cup Open Elimination 2024"]
[Site "Saint Louis"]
[Date "2024.03.14"]
[Round "1.2"]
[White "Dominguez Perez, Leinier"]
[Black "Shankland, Sam"]
[Result "1/2-1/2"]
[ECO "B33"]
[WhiteElo "2749"]
[BlackElo "2674"]
[Annotator "TA"]
[PlyCount "94"]
[EventDate "2024.03.11"]
[EventType "k.o."]
[EventCountry "USA"]
[SourceTitle "playchess.com"]
[Source "ChessBase"]
[SourceQuality "1"]
[TimeControl "900+10"]

{[%evp 30,94,19,2,22,14,18,0,0,0,0,0,0,-6,0,-20,-16,-18,-25,-28,-33,-37,-43,-59,-57,-56,-53,-73,0,-15,-11,-6,-6,-3,0,0,0,0,0,0,0,0,0,0,0,0,0,0,0,0,0,0,0,0,0,0,0,0,0,0,0,0,0,0,8,0,0]} 1. e4 {[%emt 0:00:02]} c5 {[%emt 0:00:00]} 2. Nf3 {[%emt 0:00:02][%cal Bg1f3,Bf3d4,Bd4b5,Bb5a3,Ba3c2][%mdl 32]} e6 {[%emt 0:00:01]} 3. d4 {[%emt 0:00:01]} cxd4 {[%emt 0:00:01]} 4. Nxd4 {[%emt 0:00:01]} Nc6 {[%emt 0:00:01]} 5. Nc3 {[%emt 0:00:02]} Nf6 {[%emt 0:00:02]} 6. Ndb5 {[%emt 0:00:16]} d6 {[%emt 0:00:01]} 7. Bf4 {[%emt 0:00:03]} e5 {[%emt 0:00:01]} 8. Bg5 {[%emt 0:00:02]} a6 {[%emt 0:00:01]} 9. Na3 {[%emt 0:00:01]} b5 {[%emt 0:00:01]} 10. Nd5 {[%emt 0:00:11]} Be7 {[%emt 0:00:02]} 11. Bxf6 {[%emt 0:00:02]} Bxf6 {[%emt 0:00:02]} 12. c3 {[%emt 0:00:14]} Bg5 {[%emt 0:00:04]} 13. Nc2 {[%emt 0:00:02]} Rb8 {[%emt 0:00:02]} 14. Be2 {[%emt 0:01:51]} O-O {[%emt 0:00:27]} 15. O-O {[%emt 0:00:04]} Be6 {[%emt 0:01:34]} 16. Qd3 {[%emt 0:00:39]} g6 {[%emt 0:02:13]} 17. Rfd1 {[%emt 0:02:14]} Kg7 {[%emt 0:00:31]} 18. Ncb4 {[%emt 0:02:10]} Nxb4 {[%emt 0:00:28]} 19. Nxb4 {[%emt 0:00:02]} Rb6 {[%emt 0:00:06] Prevents Nc6} 20. Nd5 {[%emt 0:00:39]} Rb7 {[%emt 0:01:10]} 21. Bf3 {[%emt 0:01:08]} a5 {[%emt 0:00:59]} 22. Qe2 {[%emt 0:00:03]} Qc8 {[%emt 0:00:28]} 23. Rd3 {[%emt 0:01:46]} b4 {[%emt 0:00:49]} 24. cxb4 {[%emt 0:01:05]} axb4 {[%emt 0:00:04]} 25. h3 {[%emt 0:00:04]} Qc5 {[%emt 0:00:47]} 26. b3 {[%emt 0:00:53]} Rc8 {[%emt 0:01:06]} 27. Bg4 {[%emt 0:01:06]} Qc2 {[%emt 0:02:19]} 28. Qf1 {[%emt 0:01:11] White is weak on the dark squares} f5 {[%emt 0:00:33]} (28... Qb2 $17 {And now ...Bc1 would win.} 29. Bxe6 fxe6) 29. exf5 $11 {[%emt 0:01:20] The position is equal.} gxf5 {[%emt 0:00:08]} 30. Be2 {[%emt 0:00:02][%cal Od3g3]} Kh8 {[%emt 0:00:47]} 31. Rdd1 {[%emt 0:00:27] Ba6 is the strong threat.} Qc5 {[%emt 0:00:52]} 32. Bc4 {[%emt 0:00:22][%cal Od5e3]} Rg7 {[%emt 0:00:40]} 33. Nxb4 {[%emt 0:00:38]} Bxc4 {[%emt 0:00:46]} 34. Qxc4 {[%emt 0:00:02]} Qxc4 35. bxc4 {[%emt 0:00:01]} Rxc4 {[%emt 0:00:07]} 36. a3 {[%emt 0:00:15]} Ra7 {[%emt 0:00:17]} 37. Rab1 {[%emt 0:01:26]} (37. Rxd6 $2 {perishes.} Rxb4 38. g3 Kg7 $19) 37... Rxa3 {[%emt 0:01:02]} 38. Rxd6 {[%emt 0:00:01]} Be7 {[%emt 0:00:04]} 39. Rb6 {[%emt 0:00:02] Hoping for Rb8+.} Rxb4 {[%emt 0:01:42]} 40. R6xb4 {[%emt 0:00:01]} Bxb4 {[%emt 0:00:00]} 41. Rxb4 {[%emt 0:00:02][%mdl 4096] Endgame. KR-KR} Ra1+ {[%emt 0:00:06]} 42. Kh2 {[%emt 0:00:01]} Kg7 {[%emt 0:00:02]} 43. Rb7+ {[%emt 0:00:04]} Kg6 {[%emt 0:00:01]} 44. Rb6+ {[%emt 0:00:03]} Kg7 {[%emt 0:00:02]} 45. Rb7+ {[%emt 0:00:04]} Kg6 {[%emt 0:00:00]} 46. Rb6+ {[%emt 0:00:01]} Kg7 {[%emt 0:00:01]} 47. Rb7+ {[%emt 0:00:01]} Kg6 {[%emt 0:00:01] Weighted Error Value: White=0.04 (flawless) /Black=0.04 (flawless) .  Mistake:       	---       	Black=1      OK:         	White=11    	Black=16     Best:        	White=2     	---} 1/2-1/2

[Event "American Cup Open Elimination 2024"]
[Site "Saint Louis"]
[Date "2024.03.14"]
[Round "1.2"]
[White "Shankland, Sam"]
[Black "Dominguez Perez, Leinier"]
[Result "1/2-1/2"]
[ECO "E24"]
[WhiteElo "2674"]
[BlackElo "2749"]
[Annotator "TA"]
[PlyCount "93"]
[EventDate "2024.03.11"]
[EventType "k.o."]
[EventCountry "USA"]
[SourceTitle "playchess.com"]
[Source "ChessBase"]
[SourceQuality "1"]
[TimeControl "900+10"]

{[%evp 10,93,-12,-20,-20,-29,-26,-18,-29,-20,-17,-37,-35,-51,-54,-46,-43,-56,-38,-53,-51,-61,-18,-14,-35,0,29,22,26,14,22,0,0,0,0,0,0,-27,-39,-34,-35,-38,-33,-15,-44,-38,-29,-33,-10,-11,-9,-23,0,0,0,0,0,-3,0,0,0,0,0,0,0,0,0,0,0,0,0,0,0,0,0,0,0,0,0,0,0,0,0,0,0,0]} 1. d4 {[%emt 0:00:01]} Nf6 {[%emt 0:00:02]} 2. c4 {[%emt 0:00:01]} e6 {[%emt 0:00:02]} 3. Nc3 {[%emt 0:00:01]} Bb4 {[%emt 0:00:01]} 4. a3 {[%emt 0:00:02]} Bxc3+ {[%emt 0:00:02]} 5. bxc3 {[%emt 0:00:01]} b6 {[%emt 0:01:12]} 6. f3 {[%emt 0:00:02]} Nc6 {[%emt 0:00:04][%cal Bb8c6,Bc6a5,Ba5b3][%mdl 32]} 7. e4 {[%emt 0:00:02]} Na5 {[%emt 0:00:05]} 8. Bd3 {[%emt 0:00:03]} Ba6 {[%emt 0:00:41]} 9. Qe2 {[%emt 0:00:03]} c5 {[%emt 0:01:00]} 10. Nh3 {[%emt 0:00:01]} cxd4 {[%emt 0:03:09]} 11. cxd4 {[%emt 0:00:02]} Nb3 {[%emt 0:00:22]} 12. e5 {[%emt 0:00:01]} Ng8 {[%emt 0:00:45][%cal Bf6g8,Bg8e7,Be7g6][%mdl 32]} (12... Nxd4 $2 13. Qf2 (13. Qb2 Nc6 $18) 13... Nb3 14. exf6 Nxc1 15. Rxc1 $18) 13. Rb1 {[%emt 0:00:01]} Nxd4 {[%emt 0:01:11]} (13... Nxc1 $6 14. Rxc1 Qh4+ 15. Qf2 Qxf2+ 16. Nxf2 $14) 14. Qf2 {[%emt 0:00:01]} Nc6 {[%emt 0:00:57] Excellent horsemanship.} 15. Qg3 {[%emt 0:00:02]} Qc7 {[%emt 0:01:25]} 16. f4 {[%emt 0:00:53]} (16. Qxg7 $2 Qxe5+ 17. Qxe5 Nxe5 $19) 16... Nge7 {[%emt 0:01:16]} 17. O-O $36 {[%emt 0:01:19][%mdl 2048] White fights for an advantage.} Ng6 {[%emt 0:01:11]} 18. Ng5 {[%emt 0:01:19][%cal Og5f7]} Nce7 {[%emt 0:00:01]} 19. Bd2 {[%emt 0:01:01][%cal Og5f7]} Nf5 {[%emt 0:03:06]} 20. Qh3 {[%emt 0:01:58]} Bxc4 {[%emt 0:00:34]} 21. Rfc1 {[%emt 0:00:40]} Qc5+ {[%emt 0:00:04]} 22. Kh1 {[%emt 0:00:03]} b5 {[%emt 0:00:35]} (22... h6 $2 23. Nxf7 (23. Rxc4 hxg5 $15) 23... Qf2 24. Rxc4 $18 (24. Nxh8 Bxd3 25. Qxd3 Nxh8 $18) (24. Bxc4 O-O $16)) 23. Bxf5 {[%emt 0:02:26]} exf5 {[%emt 0:00:03]} 24. Qxf5 {[%emt 0:00:10] [#] Threatens to win with Ne4.} (24. Nxh7 $2 Qd4 25. Be3 (25. Qf3 $2 Bd5 $19) 25... Qe4 $19) 24... Qd5 {[%emt 0:00:25]} 25. Qe4 {[%emt 0:00:36][%cal Oc1c4] aiming for Rxc4!} (25. Bb4 $2 Bd3 (25... Qxg2+ 26. Kxg2 Nh4+ 27. Kf2 $17) 26. Qg4 Bxb1 27. Rxb1 a5 $19) 25... O-O {[%emt 0:00:14]} 26. Qxd5 {[%emt 0:00:28]} Bxd5 {[%emt 0:00:01]} 27. Rxb5 {[%emt 0:00:01]} Bc6 {[%emt 0:00:07]} 28. Rb4 {[%emt 0:00:12]} Nh4 {[%emt 0:00:18]} 29. Kg1 {[%emt 0:00:46]} h6 {[%emt 0:00:23]} ({Much worse is} 29... Bxg2 30. f5 Nf3+ 31. Kxg2 $11) (29... Nxg2 30. Rxc6 Nxf4 31. Rd6 $18) 30. Ne4 {[%emt 0:00:11]} Rfb8 {[%emt 0:00:02] [#] ...Rxb4 is the strong threat.} 31. Nd6 {[%emt 0:02:45] The position is equal.} a5 {[%emt 0:00:01]} 32. Rxb8+ {[%emt 0:00:28]} Rxb8 {[%emt 0:00:01]} 33. Be1 $1 {[%emt 0:00:18]} Nxg2 {[%emt 0:00:23]} 34. Rxc6 $1 {[%emt 0:00:09]} Nxe1 $11 {[%emt 0:00:32][%mdl 4096] Endgame. KRN-KRN} 35. Rc3 {[%emt 0:00:34]} Rb2 {[%emt 0:00:15]} 36. f5 {[%emt 0:00:58]} Rc2 {[%emt 0:00:21]} 37. Rb3 {[%emt 0:00:59]} g5 {[%emt 0:00:15]} 38. Kf1 {[%emt 0:00:36]} Ng2 {[%emt 0:00:07]} 39. Ne8 {[%emt 0:00:16]} Nf4 {[%emt 0:00:14][%cal Oh6h5]} 40. Rb8 {[%emt 0:01:27] Threatening mate with Nf6+.} Rc1+ {[%emt 0:00:10]} ({Weaker is} 40... Rxh2 41. Nf6+ Kg7 42. Rg8#) 41. Kf2 {White threatens Nf6+ and mate.} Nd3+ 42. Ke3 {[%emt 0:00:21] White wants to mate with Nf6+.} Nxe5 {[%emt 0:00:02] Strongly threatening ...Kf8.} 43. Nf6+ {[%emt 0:00:01]} Kg7 {[%emt 0:00:01]} 44. Nh5+ {[%emt 0:00:01]} Kh7 {[%emt 0:00:01]} 45. Nf6+ {[%emt 0:00:02]} Kg7 {[%emt 0:00:01]} 46. Nh5+ {[%emt 0:00:01]} Kh7 {[%emt 0:00:00]} 47. Nf6+ {[%emt 0:00:00] Weighted Error Value: White=0.03 (flawless) /Black=0.04 (flawless) .  Inaccurate:     	White=1     	Black=2      OK:         	White=27    	Black=20     Best:        	White=3     	Black=4      Strong:       	White=2     	---} 1/2-1/2

[Event "American Cup Open Elimination 2024"]
[Site "Saint Louis"]
[Date "2024.03.14"]
[Round "1.2"]
[White "Oparin, Grigoriy"]
[Black "Sevian, Samuel"]
[Result "1/2-1/2"]
[ECO "D00"]
[WhiteElo "2671"]
[BlackElo "2697"]
[Annotator "TA"]
[PlyCount "76"]
[EventDate "2024.03.11"]
[EventType "k.o."]
[EventCountry "USA"]
[SourceTitle "playchess.com"]
[Source "ChessBase"]
[SourceQuality "1"]
[TimeControl "900+10"]

{[%evp 9,76,0,-6,-6,10,7,19,6,2,0,3,4,16,0,27,23,32,25,27,28,41,25,10,13,17,19,20,17,22,16,32,0,0,0,0,0,31,11,18,4,4,0,9,0,0,0,8,0,12,12,13,0,15,0,11,0,8,0,14,0,65,0,25,0,67,0,16,0,71]} 1. d4 {[%emt 0:00:01]} Nf6 {[%emt 0:00:00]} 2. Nc3 {[%emt 0:00:02]} d5 {[%emt 0:00:02]} 3. Bf4 {[%emt 0:00:02]} e6 {[%emt 0:00:01]} 4. Nb5 {[%emt 0:00:16]} Na6 {[%emt 0:00:01]} 5. e3 {[%emt 0:00:07]} c6 {[%emt 0:00:07]} 6. Nc3 {[%emt 0:00:04]} Qb6 {[%emt 0:00:01]} 7. a3 {[%emt 0:00:53]} Be7 {[%emt 0:00:01]} (7... Qxb2 $2 8. Na4 Bb4+ 9. axb4 Qxb4+ 10. c3 $18) 8. Nf3 {[%emt 0:01:35]} c5 {[%emt 0:00:01]} (8... Qxb2 $2 {is the wrong capture.} 9. Na4 $18) 9. Rb1 {[%emt 0:00:42]} Bd7 {[%emt 0:02:38]} 10. Ne5 {[%emt 0:01:10]} cxd4 {[%emt 0:02:14]} 11. Qxd4 {[%emt 0:01:37]} Qxd4 {[%emt 0:05:29]} 12. exd4 {[%emt 0:00:02]} Nb8 {[%emt 0:00:00]} 13. Nb5 {[%emt 0:00:50]} Bxb5 {[%emt 0:00:05]} 14. Bxb5+ {[%emt 0:00:01]} Nfd7 {[%emt 0:00:11]} 15. O-O {[%emt 0:03:10]} a6 {[%emt 0:00:20]} 16. Bd3 {[%emt 0:00:13]} Nxe5 {[%emt 0:00:06]} 17. Bxe5 {[%emt 0:00:02]} O-O {[%emt 0:00:10]} 18. c3 {[%emt 0:00:23]} Nd7 {[%emt 0:00:27]} 19. Bf4 {[%emt 0:00:11]} Rfc8 {[%emt 0:00:56]} 20. a4 {[%emt 0:01:47]} Nb6 {[%emt 0:00:12]} 21. Ra1 {[%emt 0:00:06]} Nc4 {[%emt 0:00:18]} 22. Ra2 {[%emt 0:00:03]} Na5 {[%emt 0:01:58]} 23. g3 {[%emt 0:00:54]} Rc6 {[%emt 0:00:32]} 24. h4 {[%emt 0:00:21]} h5 {[%emt 0:00:18]} 25. Rd1 {[%emt 0:00:14]} Bd6 {[%emt 0:00:23]} 26. Bg5 {[%emt 0:00:08]} Rac8 {[%emt 0:00:09]} 27. Kg2 {[%emt 0:00:05]} Kf8 {[%emt 0:00:20]} 28. Re1 {[%emt 0:00:32]} Be7 {[%emt 0:00:13]} 29. Bf4 {[%emt 0:00:06]} Bd6 {[%emt 0:00:00]} 30. Bg5 {[%emt 0:01:50]} Be7 {[%emt 0:00:01]} 31. Bf4 {[%emt 0:00:05]} Bd6 {[%emt 0:00:03]} 32. Be3 {[%emt 0:00:33]} Rb6 {[%emt 0:00:37]} 33. Bg5 {[%emt 0:00:18]} Be7 {[%emt 0:00:06]} 34. Bf4 {[%emt 0:00:05]} Nc4 {[%emt 0:00:38]} ({Black should play} 34... Bd6 $11) 35. Re2 {[%emt 0:00:07]} (35. a5 $1 $14 Rbc6 36. b3) 35... Na5 {[%emt 0:00:17]} 36. Re1 {[%emt 0:00:07]} Nc4 {[%emt 0:00:01]} 37. Re2 {[%emt 0:00:03]} (37. a5 $1 $14 Rbc6 38. b3) 37... Na5 $11 {[%emt 0:00:00]} 38. Re1 {[%emt 0:00:02]} ({White should try} 38. f3 $11) 38... Nc4 {[%emt 0:00:11] Weighted Error Value: White=0.14 (very precise) /Black=0.10 (very precise) .  Mistake:       	White=3     	Black=1      Inaccurate:     	White=1     	Black=2      OK:         	White=5     	Black=17} 1/2-1/2

[Event "American Cup Open Elimination 2024"]
[Site "Saint Louis"]
[Date "2024.03.12"]
[Round "1.3"]
[White "Shankland, Sam"]
[Black "Dominguez Perez, Leinier"]
[Result "0-1"]
[ECO "E28"]
[WhiteElo "2674"]
[BlackElo "2749"]
[Annotator "TA"]
[PlyCount "76"]
[EventDate "2024.03.11"]
[EventType "k.o."]
[EventCountry "USA"]
[SourceTitle "playchess.com"]
[Source "ChessBase"]
[SourceQuality "1"]
[TimeControl "900+10"]

{[%evp 11,76,-23,-13,-64,-10,-38,-39,-42,-29,-26,-62,-55,8,-32,0,0,0,0,-6,0,4,0,32,45,41,-31,-16,-40,-44,-52,-43,-122,-119,-139,-138,-167,-171,-239,-192,-274,-256,-257,-287,-287,-272,-444,-464,-448,-448,-677,-661,-761,-755,-2016,-1743,-929,-662,-1451,-851,-867,-852,-1237,-1188,-1066,-837,-1164,-1062]} 1. d4 {[%emt 0:00:01]} Nf6 {[%emt 0:00:03]} 2. c4 {[%emt 0:00:01]} e6 {[%emt 0:00:01]} 3. Nc3 {[%emt 0:00:01]} Bb4 {[%emt 0:00:02]} 4. e3 {[%emt 0:00:01]} O-O {[%emt 0:00:03]} 5. a3 {[%emt 0:00:01]} Bxc3+ {[%emt 0:00:02]} 6. bxc3 {[%emt 0:00:01]} d6 {[%emt 0:00:16]} 7. f3 {[%emt 0:00:02]} (7. Nf3 $11) 7... e5 {[%emt 0:00:16]} ({Besser ist} 7... b6 $15) 8. e4 {[%emt 0:00:02]} (8. Bd3 $5) 8... Nh5 {[%emt 0:00:11] Und jetzt ...Qh4+ wäre schön.} 9. Be3 {[%emt 0:00:02] Schwarz steht etwas besser.} f5 {[%emt 0:00:08]} 10. exf5 {[%emt 0:00:12]} exd4 {[%emt 0:00:04]} 11. cxd4 {[%emt 0:00:02]} Bxf5 {[%emt 0:00:18]} (11... Re8 $1 $15 12. Qb3 Qh4+ 13. Kd2 c5) 12. Ne2 {[%emt 0:01:39][%cal Bg1e2,Be2c3,Bc3d5][%mdl 32]} (12. g4 {wäre vielleicht verwirrender.} Re8 13. Qb3 Bc2 14. Qc3) 12... Qe7 {[%emt 0:01:28]} 13. Qd2 {[%emt 0:00:28]} Bg6 {[%emt 0:07:54]} 14. Nc3 {[%emt 0:04:50]} Nc6 {[%emt 0:00:02]} 15. Be2 {[%emt 0:00:53]} Rae8 {[%emt 0:00:58]} 16. Nd5 {[%emt 0:00:29]} Qf7 {[%emt 0:00:57][%cal Oc6a5]} 17. O-O {[%emt 0:00:37]} b6 {[%emt 0:00:12]} 18. Rae1 {[%emt 0:01:23]} (18. f4 $1 $14 Be4 19. Nxc7 Qxc7 20. Bxh5) 18... Na5 $1 $15 {[%emt 0:00:02]} 19. g4 {[%emt 0:01:22]} Nf6 {[%emt 0:00:02]} 20. Nxf6+ {[%emt 0:00:08]} Qxf6 {[%emt 0:00:01]} 21. Bf2 {[%emt 0:01:18] Schwarz führt seinen Vorteil zum Gewinn.} ({Vorzuziehen ist} 21. c5 $15) 21... c5 $17 {[%emt 0:01:06] Schwarz hat aktiveres Spiel.} 22. dxc5 {[%emt 0:03:03]} dxc5 {[%emt 0:00:01]} 23. h4 {[%emt 0:00:07]} Rd8 {[%emt 0:00:39]} 24. Qa2 {[%emt 0:00:24]} (24. Qe3 $142) 24... Bd3 {[%emt 0:01:26]} 25. Kg2 {[%emt 0:01:40]} (25. h5 {ist wohl besser.}) 25... Qf7 $19 {[%emt 0:00:31]} ({Bloß nicht} 25... Nxc4 26. Kg1 Qf7 27. h5) 26. Bg3 {[%emt 0:00:24]} Nxc4 {[%emt 0:00:06] Weiss muss nun ...Ne3+ beachten.} ({Auf keinen Fall} 26... Bxc4 27. Qc2 $19) 27. Kh3 {[%emt 0:00:09]} b5 {[%emt 0:01:29] Weiss ist schwach auf den weissen Feldern} 28. Rd1 $2 {[%emt 0:00:15]} (28. h5) 28... Bxe2 {[%emt 0:00:10] Schwarz steht klar auf Gewinn.} 29. Qxe2 {[%emt 0:00:01]} Rde8 {[%emt 0:00:27]} (29... Nxa3 30. Rxd8 Rxd8 31. Qe3 $17) 30. Qf2 {[%emt 0:00:02]} (30. Qa2 $142 Re3 31. Rf2) 30... Ne3 {[%emt 0:00:08]} ({Schlechter ist} 30... Nxa3 31. Bd6 $14) 31. Bd6 {[%emt 0:00:19]} Nxd1 {[%emt 0:00:04]} 32. Qxc5 {[%emt 0:00:02]} Ne3 {[%emt 0:00:18]} 33. Rf2 {[%emt 0:00:01]} a6 {[%emt 0:00:56][%cal Oe3g4] ...Nxg4! wäre nun fies.} 34. h5 {[%emt 0:00:08] [#]} Nd5 $1 {[%emt 0:00:06][%cal Oe8c8]} 35. Bxf8 {[%emt 0:00:13]} Rxf8 {[%emt 0:00:05]} 36. Qc6 {[%emt 0:00:05]} Nf4+ {[%emt 0:00:08]} 37. Kg3 {[%emt 0:00:02]} h6 {[%emt 0:00:10] ...Qe7 ist eine echte Drohung.} 38. Rd2 {[%emt 0:00:15] [#]} Nxh5+ $1 {[%emt 0:00:08] Gewichteter Fehlerwert: Weiß=0.92/Schwarz=0.57.  Fehler:       	Weiß=6     	Schwarz=2     Ungenau:       	Weiß=2     	Schwarz=2     OK:         	Weiß=5     	Schwarz=11    Bester:       	Weiß=2     	Schwarz=2     Stark:        	---       	Schwarz=1} 0-1